[Event "Chessable Masters - Torneo preliminare"]
[White "Shimanov, Aleksandr"]
[Black "Fressinet, Laurent"]
[WhiteFideId "4198603"]
[BlackFideId "608742"]
[WhiteElo "2610"]
[BlackElo "2689"]
[Result "1-0"]
[Round "7"]
[TimeControl "600+2"]
[Date "2023.03.13"]
[WhiteClock "0:00:14"]
[BlackClock "0:00:03"]

1. e4 {[%clk 0:10:01]}  e5 {[%clk 0:08:26]} 2. Nf3 {[%clk 0:10:01]}  Nc6 {[%clk 0:08:27]} 3. Nc3 {[%clk 0:10:02]}  Nf6 {[%clk 0:08:27]} 4. h3 {[%clk 0:10:04]}  Bd6 {[%clk 0:08:11]} 5. Bc4 {[%clk 0:09:46]}  O-O {[%clk 0:08:08]} 6. a3 {[%clk 0:09:34]}  a6 {[%clk 0:08:04]} 7. d3 {[%clk 0:09:30]}  b5 {[%clk 0:07:56]} 8. Ba2 {[%clk 0:09:28]}  Bb7 {[%clk 0:07:56]} 9. g4 {[%clk 0:09:23]}  Nd4 {[%clk 0:07:36]} 10. g5 {[%clk 0:09:17]}  Ne8 {[%clk 0:07:22]} 11. h4 {[%clk 0:08:59]}  Kh8 {[%clk 0:07:13]} 12. h5 {[%clk 0:08:51]}  f5 {[%clk 0:06:41]} 13. Nh4 {[%clk 0:08:47]}  Ne6 {[%clk 0:05:58]} 14. Ng6+ {[%clk 0:08:46]}  Kg8 {[%clk 0:05:53]} 15. Nxf8 {[%clk 0:08:43]}  Bxf8 {[%clk 0:05:46]} 16. exf5 {[%clk 0:08:08]}  Bxh1 {[%clk 0:05:46]} 17. fxe6 {[%clk 0:08:09]}  Kh8 {[%clk 0:05:17]} 18. Qg4 {[%clk 0:08:00]}  Bc6 {[%clk 0:05:08]} 19. Bd2 {[%clk 0:07:19]}  a5 {[%clk 0:04:43]} 20. Qf5 {[%clk 0:05:50]}  Nd6 {[%clk 0:03:45]} 21. Qxe5 {[%clk 0:05:47]}  b4 {[%clk 0:03:46]} 22. Nd5 {[%clk 0:05:43]}  dxe6 {[%clk 0:03:15]} 23. Nf4 {[%clk 0:05:44]}  Qe8 {[%clk 0:02:22]} 24. Nxe6 {[%clk 0:05:08]}  Qxh5 {[%clk 0:02:07]} 25. Bd5 {[%clk 0:04:17]}  Bxd5 {[%clk 0:01:45]} 26. Qxd5 {[%clk 0:04:19]}  Re8 {[%clk 0:01:45]} 27. Be3 {[%clk 0:03:49]}  Rxe6 {[%clk 0:01:31]} 28. axb4 {[%clk 0:03:49]}  axb4 {[%clk 0:01:31]} 29. Kd2 {[%clk 0:02:38]}  Qg6 {[%clk 0:01:10]} 30. Ra7 {[%clk 0:02:32]}  Re7 {[%clk 0:01:05]} 31. b3 {[%clk 0:02:06]}  Nf5 {[%clk 0:00:55]} 32. Bf4 {[%clk 0:01:55]}  Rf7 {[%clk 0:00:53]} 33. Ra8 {[%clk 0:01:48]}  Ne7 {[%clk 0:00:40]} 34. Qc4 {[%clk 0:01:42]}  Nf5 {[%clk 0:00:32]} 35. Qxb4 {[%clk 0:01:38]}  Kg8 {[%clk 0:00:32]} 36. Kc1 {[%clk 0:01:07]}  Qc6 {[%clk 0:00:24]} 37. Rb8 {[%clk 0:01:04]}  g6 {[%clk 0:00:25]} 38. Be5 {[%clk 0:00:59]}  Re7 {[%clk 0:00:15]} 39. f4 {[%clk 0:00:53]}  Re8 {[%clk 0:00:13]} 40. Rxe8 {[%clk 0:00:48]}  Qxe8 {[%clk 0:00:15]} 41. Qc4+ {[%clk 0:00:49]}  Qf7 {[%clk 0:00:16]} 42. Qxc7 {[%clk 0:00:47]}  Qxc7 {[%clk 0:00:14]} 43. Bxc7 {[%clk 0:00:48]}  Kf7 {[%clk 0:00:15]} 44. Kd2 {[%clk 0:00:48]}  Ke6 {[%clk 0:00:15]} 45. c3 {[%clk 0:00:40]}  Kd7 {[%clk 0:00:10]} 46. Be5 {[%clk 0:00:39]}  Bd6 {[%clk 0:00:09]} 47. Bxd6 {[%clk 0:00:39]}  Kxd6 {[%clk 0:00:11]} 48. b4 {[%clk 0:00:39]}  Kd5 {[%clk 0:00:11]} 49. Ke2 {[%clk 0:00:32]}  Ne7 {[%clk 0:00:11]} 50. Ke3 {[%clk 0:00:31]}  Nf5+ {[%clk 0:00:07]} 51. Kf3 {[%clk 0:00:32]}  Ne7 {[%clk 0:00:08]} 52. b5 {[%clk 0:00:30]}  Kc5 {[%clk 0:00:08]} 53. c4 {[%clk 0:00:31]}  Kd4 {[%clk 0:00:09]} 54. Ke2 {[%clk 0:00:31]}  Nc8 {[%clk 0:00:10]} 55. Kf3 {[%clk 0:00:22]}  Nb6 {[%clk 0:00:09]} 56. f5 {[%clk 0:00:23]}  gxf5 {[%clk 0:00:04]} 57. Kf4 {[%clk 0:00:25]}  Nd7 {[%clk 0:00:05]} 58. Kxf5 {[%clk 0:00:24]}  Kxd3 {[%clk 0:00:06]} 59. Ke6 {[%clk 0:00:10]}  Nc5+ {[%clk 0:00:02]} 60. Kd5 {[%clk 0:00:11]}  Na4 {[%clk 0:00:02]} 61. c5 {[%clk 0:00:12]}  Kc3 {[%clk 0:00:03]} 62. b6 {[%clk 0:00:13]}  Kb4 {[%clk 0:00:03]} 63. b7 {[%clk 0:00:14]} 1-0


[Site "Internet"]

[Event "Chessable Masters - Torneo preliminare"]
[White "Kevlishvili, Robby"]
[Black "Paravyan, David"]
[WhiteFideId "1040634"]
[BlackFideId "4194985"]
[WhiteElo "2577"]
[BlackElo "2598"]
[Result "1/2-1/2"]
[Round "7"]
[TimeControl "600+2"]
[Date "2023.03.13"]
[WhiteClock "0:00:22"]
[BlackClock "0:01:19"]

1. e4 {[%clk 0:10:01]}  e5 {[%clk 0:10:00]} 2. Nf3 {[%clk 0:10:02]}  Nf6 {[%clk 0:10:02]} 3. Nxe5 {[%clk 0:09:59]}  d6 {[%clk 0:10:03]} 4. Nf3 {[%clk 0:09:59]}  Nxe4 {[%clk 0:10:04]} 5. d4 {[%clk 0:09:57]}  d5 {[%clk 0:10:05]} 6. Bd3 {[%clk 0:09:52]}  Be7 {[%clk 0:10:05]} 7. O-O {[%clk 0:09:53]}  Nc6 {[%clk 0:10:06]} 8. c4 {[%clk 0:09:42]}  Nb4 {[%clk 0:10:01]} 9. Be2 {[%clk 0:09:39]}  O-O {[%clk 0:10:01]} 10. Nc3 {[%clk 0:09:38]}  Be6 {[%clk 0:09:58]} 11. cxd5 {[%clk 0:08:55]}  Nxc3 {[%clk 0:09:53]} 12. bxc3 {[%clk 0:08:57]}  Nxd5 {[%clk 0:09:54]} 13. Bd2 {[%clk 0:08:56]}  Nb6 {[%clk 0:09:49]} 14. Ne5 {[%clk 0:08:56]}  Bf6 {[%clk 0:09:47]} 15. Re1 {[%clk 0:07:57]}  c5 {[%clk 0:09:45]} 16. dxc5 {[%clk 0:07:44]}  Bxe5 {[%clk 0:09:41]} 17. cxb6 {[%clk 0:07:45]}  Qxb6 {[%clk 0:09:40]} 18. Bf3 {[%clk 0:07:40]}  Qc7 {[%clk 0:09:36]} 19. g3 {[%clk 0:07:36]}  Rad8 {[%clk 0:09:32]} 20. Qe2 {[%clk 0:07:32]}  Bxc3 {[%clk 0:06:51]} 21. Bxc3 {[%clk 0:07:31]}  Qxc3 {[%clk 0:06:50]} 22. Bxb7 {[%clk 0:07:24]}  Rd2 {[%clk 0:06:49]} 23. Qe3 {[%clk 0:07:23]}  Qxe3 {[%clk 0:06:22]} 24. Rxe3 {[%clk 0:07:25]}  Rb8 {[%clk 0:06:23]} 25. Bc6 {[%clk 0:04:10]}  Rbb2 {[%clk 0:06:22]} 26. Rf3 {[%clk 0:03:52]}  g5 {[%clk 0:06:13]} 27. h4 {[%clk 0:03:13]}  h6 {[%clk 0:06:13]} 28. hxg5 {[%clk 0:03:14]}  hxg5 {[%clk 0:06:14]} 29. Ra3 {[%clk 0:03:13]}  Rxf2 {[%clk 0:05:44]} 30. Rxa7 {[%clk 0:03:13]}  Rfc2 {[%clk 0:05:44]} 31. Rb7 {[%clk 0:01:18]}  Rxb7 {[%clk 0:05:11]} 32. Bxb7 {[%clk 0:01:19]}  Bxa2 {[%clk 0:05:13]} 33. Be4 {[%clk 0:01:19]}  Rb2 {[%clk 0:05:11]} 34. Rf1 {[%clk 0:01:16]}  Be6 {[%clk 0:05:12]} 35. Rf2 {[%clk 0:01:16]}  Rb4 {[%clk 0:05:11]} 36. Bf3 {[%clk 0:01:15]}  Kg7 {[%clk 0:05:10]} 37. Re2 {[%clk 0:01:10]}  Bc4 {[%clk 0:04:48]} 38. Rd2 {[%clk 0:01:06]}  Be6 {[%clk 0:04:26]} 39. Kf2 {[%clk 0:01:04]}  Kf6 {[%clk 0:04:27]} 40. Re2 {[%clk 0:01:04]}  Rb3 {[%clk 0:04:26]} 41. Re3 {[%clk 0:01:03]}  Rb2+ {[%clk 0:04:27]} 42. Re2 {[%clk 0:01:04]}  Rb8 {[%clk 0:04:28]} 43. Rd2 {[%clk 0:01:03]}  Rh8 {[%clk 0:04:18]} 44. Bg2 {[%clk 0:01:03]}  Rc8 {[%clk 0:03:59]} 45. Bf3 {[%clk 0:01:03]}  Rc3 {[%clk 0:04:00]} 46. Re2 {[%clk 0:01:01]}  Bc4 {[%clk 0:04:01]} 47. Rd2 {[%clk 0:01:01]}  Ke5 {[%clk 0:04:01]} 48. Rb2 {[%clk 0:01:00]}  f5 {[%clk 0:04:01]} 49. Rd2 {[%clk 0:00:59]}  g4 {[%clk 0:03:57]} 50. Bg2 {[%clk 0:00:56]}  Bd3 {[%clk 0:03:54]} 51. Ra2 {[%clk 0:00:54]}  Rc5 {[%clk 0:03:53]} 52. Ke3 {[%clk 0:00:53]}  Bb1 {[%clk 0:03:45]} 53. Ra7 {[%clk 0:00:39]}  Rc3+ {[%clk 0:03:43]} 54. Kf2 {[%clk 0:00:40]}  Rc2+ {[%clk 0:03:42]} 55. Kg1 {[%clk 0:00:39]}  Rb2 {[%clk 0:03:35]} 56. Re7+ {[%clk 0:00:31]}  Kd4 {[%clk 0:03:35]} 57. Re1 {[%clk 0:00:18]}  Bd3 {[%clk 0:03:30]} 58. Rd1 {[%clk 0:00:18]}  Ke3 {[%clk 0:03:30]} 59. Ra1 {[%clk 0:00:15]}  Rd2 {[%clk 0:03:20]} 60. Re1+ {[%clk 0:00:16]}  Be2 {[%clk 0:03:19]} 61. Ra1 {[%clk 0:00:17]}  Bf3 {[%clk 0:03:12]} 62. Ra3+ {[%clk 0:00:16]}  Ke2 {[%clk 0:02:58]} 63. Bf1+ {[%clk 0:00:16]}  Kd1 {[%clk 0:02:54]} 64. Bd3 {[%clk 0:00:14]}  Rg2+ {[%clk 0:02:40]} 65. Kf1 {[%clk 0:00:15]}  Rxg3 {[%clk 0:02:42]} 66. Kf2 {[%clk 0:00:15]}  f4 {[%clk 0:02:35]} 67. Bf1 {[%clk 0:00:16]}  Kc2 {[%clk 0:02:31]} 68. Ra4 {[%clk 0:00:17]}  Bd1 {[%clk 0:02:13]} 69. Rxf4 {[%clk 0:00:17]}  Rb3 {[%clk 0:02:14]} 70. Be2 {[%clk 0:00:15]}  g3+ {[%clk 0:02:14]} 71. Ke1 {[%clk 0:00:17]}  Rb1 {[%clk 0:02:01]} 72. Rg4 {[%clk 0:00:15]}  Bxe2+ {[%clk 0:01:16]} 73. Kxe2 {[%clk 0:00:17]}  Rb3 {[%clk 0:01:15]} 74. Kf1 {[%clk 0:00:18]}  Kd2 {[%clk 0:01:16]} 75. Kg2 {[%clk 0:00:19]}  Ke2 {[%clk 0:01:18]} 76. Rxg3 {[%clk 0:00:20]}  Rxg3+ {[%clk 0:01:19]} 77. Kxg3 {[%clk 0:00:22]} 1/2-1/2


[Site "Internet"]

[Event "Chessable Masters - Torneo preliminare"]
[White "Perez Ponsa, Federico"]
[Black "Kamsky, Gata"]
[WhiteFideId "117927"]
[BlackFideId "2000024"]
[WhiteElo "2586"]
[BlackElo "2630"]
[Result "0-1"]
[Round "7"]
[TimeControl "600+2"]
[Date "2023.03.13"]
[WhiteClock "0:00:16"]
[BlackClock "0:00:46"]

1. e4 {[%clk 0:09:49]}  g6 {[%clk 0:09:57]} 2. d4 {[%clk 0:09:49]}  Bg7 {[%clk 0:09:58]} 3. Nf3 {[%clk 0:09:51]}  d6 {[%clk 0:09:59]} 4. Bc4 {[%clk 0:09:52]}  e6 {[%clk 0:10:00]} 5. Bb3 {[%clk 0:09:51]}  b6 {[%clk 0:09:56]} 6. O-O {[%clk 0:09:53]}  Bb7 {[%clk 0:09:54]} 7. Re1 {[%clk 0:09:54]}  Nd7 {[%clk 0:09:53]} 8. Nbd2 {[%clk 0:09:54]}  Ne7 {[%clk 0:09:34]} 9. Nf1 {[%clk 0:09:54]}  O-O {[%clk 0:09:33]} 10. Ng3 {[%clk 0:09:54]}  Nf6 {[%clk 0:09:22]} 11. c3 {[%clk 0:09:51]}  c5 {[%clk 0:09:06]} 12. h3 {[%clk 0:09:50]}  cxd4 {[%clk 0:09:01]} 13. cxd4 {[%clk 0:09:50]}  Rc8 {[%clk 0:09:01]} 14. Bf4 {[%clk 0:09:45]}  Nc6 {[%clk 0:08:45]} 15. a3 {[%clk 0:09:05]}  Re8 {[%clk 0:08:30]} 16. Ba2 {[%clk 0:08:56]}  e5 {[%clk 0:08:24]} 17. dxe5 {[%clk 0:08:54]}  dxe5 {[%clk 0:08:24]} 18. Be3 {[%clk 0:08:44]}  h6 {[%clk 0:08:08]} 19. Nh4 {[%clk 0:08:12]}  Qxd1 {[%clk 0:08:05]} 20. Raxd1 {[%clk 0:08:11]}  Kf8 {[%clk 0:08:06]} 21. b4 {[%clk 0:07:40]}  Red8 {[%clk 0:07:45]} 22. Nf3 {[%clk 0:07:36]}  Ng8 {[%clk 0:07:00]} 23. b5 {[%clk 0:06:49]}  Nd4 {[%clk 0:06:56]} 24. Nxd4 {[%clk 0:06:37]}  exd4 {[%clk 0:06:56]} 25. Bd2 {[%clk 0:06:38]}  Be5 {[%clk 0:06:18]} 26. f4 {[%clk 0:05:45]}  Bd6 {[%clk 0:06:17]} 27. e5 {[%clk 0:05:46]}  Bxa3 {[%clk 0:06:09]} 28. f5 {[%clk 0:05:47]}  Rc2 {[%clk 0:05:18]} 29. Bb3 {[%clk 0:05:22]}  Rb2 {[%clk 0:04:59]} 30. Bc4 {[%clk 0:05:04]}  Bb4 {[%clk 0:04:09]} 31. Bxb4+ {[%clk 0:04:29]}  Rxb4 {[%clk 0:04:10]} 32. Bd3 {[%clk 0:04:31]}  Ne7 {[%clk 0:04:02]} 33. f6 {[%clk 0:04:00]}  Nd5 {[%clk 0:04:01]} 34. Ra1 {[%clk 0:03:56]}  Rb3 {[%clk 0:03:42]} 35. Red1 {[%clk 0:03:48]}  Nf4 {[%clk 0:03:41]} 36. Be4 {[%clk 0:03:38]}  Bxe4 {[%clk 0:03:31]} 37. Nxe4 {[%clk 0:03:39]}  Rxb5 {[%clk 0:03:31]} 38. Rxa7 {[%clk 0:01:52]}  Rxe5 {[%clk 0:03:30]} 39. Nf2 {[%clk 0:01:50]}  Re6 {[%clk 0:03:25]} 40. g3 {[%clk 0:01:31]}  Nh5 {[%clk 0:02:32]} 41. Rc1 {[%clk 0:01:21]}  Rxf6 {[%clk 0:02:19]} 42. Ng4 {[%clk 0:01:18]}  Rf3 {[%clk 0:02:19]} 43. Ne5 {[%clk 0:00:43]}  Rf5 {[%clk 0:01:10]} 44. Ng4 {[%clk 0:00:28]}  Kg7 {[%clk 0:01:06]} 45. Kg2 {[%clk 0:00:21]}  d3 {[%clk 0:01:06]} 46. Rd1 {[%clk 0:00:20]}  Nf6 {[%clk 0:01:01]} 47. Nf2 {[%clk 0:00:18]}  Rfd5 {[%clk 0:00:56]} 48. Rd2 {[%clk 0:00:17]}  b5 {[%clk 0:00:53]} 49. Ra3 {[%clk 0:00:17]}  b4 {[%clk 0:00:48]} 50. Rb3 {[%clk 0:00:18]}  Rd4 {[%clk 0:00:49]} 51. Rdxd3 {[%clk 0:00:17]}  Ne4 {[%clk 0:00:45]} 52. Rxb4 {[%clk 0:00:05]}  Rxd3 {[%clk 0:00:42]} 53. Nxd3 {[%clk 0:00:04]}  Nxg3 {[%clk 0:00:43]} 54. Ne5 {[%clk 0:00:05]}  Nh5 {[%clk 0:00:41]} 55. Rb7 {[%clk 0:00:05]}  Rf8 {[%clk 0:00:42]} 56. Kf3 {[%clk 0:00:06]}  Nf6 {[%clk 0:00:42]} 57. h4 {[%clk 0:00:06]}  Ne8 {[%clk 0:00:39]} 58. Rd7 {[%clk 0:00:06]}  h5 {[%clk 0:00:39]} 59. Kf4 {[%clk 0:00:05]}  Kf6 {[%clk 0:00:40]} 60. Ra7 {[%clk 0:00:03]}  Ke6 {[%clk 0:00:37]} 61. Nd7 {[%clk 0:00:03]}  Rh8 {[%clk 0:00:36]} 62. Nc5+ {[%clk 0:00:04]}  Kf6 {[%clk 0:00:37]} 63. Ne4+ {[%clk 0:00:05]}  Kg7 {[%clk 0:00:37]} 64. Ng5 {[%clk 0:00:07]}  Rf8 {[%clk 0:00:26]} 65. Ne6+ {[%clk 0:00:08]}  Kg8 {[%clk 0:00:28]} 66. Nxf8 {[%clk 0:00:09]}  Kxf8 {[%clk 0:00:29]} 67. Ra1 {[%clk 0:00:10]}  Kg7 {[%clk 0:00:30]} 68. Ra2 {[%clk 0:00:11]}  Nd6 {[%clk 0:00:31]} 69. Ra5 {[%clk 0:00:09]}  Nf5 {[%clk 0:00:31]} 70. Rxf5 {[%clk 0:00:03]}  gxf5 {[%clk 0:00:32]} 71. Kxf5 {[%clk 0:00:05]}  f6 {[%clk 0:00:34]} 72. Kf4 {[%clk 0:00:03]}  Kf8 {[%clk 0:00:35]} 73. Ke4 {[%clk 0:00:04]}  Ke7 {[%clk 0:00:35]} 74. Kd5 {[%clk 0:00:03]}  Kd7 {[%clk 0:00:36]} 75. Kd4 {[%clk 0:00:04]}  Kd6 {[%clk 0:00:37]} 76. Ke4 {[%clk 0:00:06]}  Ke6 {[%clk 0:00:37]} 77. Kf4 {[%clk 0:00:07]}  Ke7 {[%clk 0:00:38]} 78. Ke4 {[%clk 0:00:06]}  Ke6 {[%clk 0:00:36]} 79. Kf4 {[%clk 0:00:07]}  f5 {[%clk 0:00:37]} 80. Kg5 {[%clk 0:00:09]}  Ke5 {[%clk 0:00:38]} 81. Kxh5 {[%clk 0:00:10]}  Kf6 {[%clk 0:00:39]} 82. Kh6 {[%clk 0:00:10]}  f4 {[%clk 0:00:41]} 83. h5 {[%clk 0:00:09]}  f3 {[%clk 0:00:42]} 84. Kh7 {[%clk 0:00:11]}  Kf7 {[%clk 0:00:43]} 85. h6 {[%clk 0:00:13]}  f2 {[%clk 0:00:44]} 86. Kh8 {[%clk 0:00:15]}  f1=Q {[%clk 0:00:45]} 87. h7 {[%clk 0:00:16]}  Qf6# {[%clk 0:00:46]} 0-1


[Site "Internet"]

[Event "Chessable Masters - Torneo preliminare"]
[White "Van Foreest, Lucas"]
[Black "Vallejo Pons, Francisco"]
[WhiteFideId "1039792"]
[BlackFideId "2205530"]
[WhiteElo "2483"]
[BlackElo "2662"]
[Result "0-1"]
[Round "7"]
[TimeControl "600+2"]
[Date "2023.03.13"]
[WhiteClock "0:06:09"]
[BlackClock "0:00:19"]

1. d4 {[%clk 0:10:01]}  e6 {[%clk 0:09:55]} 2. c4 {[%clk 0:10:02]}  b6 {[%clk 0:09:56]} 3. e4 {[%clk 0:10:03]}  Bb4+ {[%clk 0:09:55]} 4. Bd2 {[%clk 0:10:04]}  Bxd2+ {[%clk 0:09:54]} 5. Qxd2 {[%clk 0:10:06]}  d5 {[%clk 0:09:54]} 6. Qe3 {[%clk 0:10:07]}  Ne7 {[%clk 0:09:52]} 7. Nc3 {[%clk 0:10:06]}  O-O {[%clk 0:09:49]} 8. Nf3 {[%clk 0:09:55]}  Ba6 {[%clk 0:09:24]} 9. cxd5 {[%clk 0:09:31]}  Bxf1 {[%clk 0:09:24]} 10. Kxf1 {[%clk 0:09:32]}  exd5 {[%clk 0:09:24]} 11. e5 {[%clk 0:09:34]}  c5 {[%clk 0:08:56]} 12. g3 {[%clk 0:09:34]}  Nbc6 {[%clk 0:08:54]} 13. Ne2 {[%clk 0:09:08]}  f6 {[%clk 0:05:04]} 14. Kg2 {[%clk 0:08:55]}  fxe5 {[%clk 0:04:41]} 15. dxe5 {[%clk 0:08:43]}  d4 {[%clk 0:04:27]} 16. Qb3+ {[%clk 0:08:43]}  Qd5 {[%clk 0:04:19]} 17. Nf4 {[%clk 0:08:42]}  Rxf4 {[%clk 0:03:32]} 18. Qxd5+ {[%clk 0:08:26]}  Nxd5 {[%clk 0:03:34]} 19. gxf4 {[%clk 0:08:27]}  Nxf4+ {[%clk 0:03:34]} 20. Kg3 {[%clk 0:08:28]}  Nd3 {[%clk 0:03:09]} 21. b3 {[%clk 0:08:23]}  Re8 {[%clk 0:02:36]} 22. Rad1 {[%clk 0:08:23]}  Ndxe5 {[%clk 0:01:54]} 23. Rhe1 {[%clk 0:08:18]}  Kf8 {[%clk 0:01:54]} 24. Nxe5 {[%clk 0:08:18]}  Nxe5 {[%clk 0:01:53]} 25. f4 {[%clk 0:08:18]}  Nc6 {[%clk 0:01:51]} 26. Rxe8+ {[%clk 0:08:13]}  Kxe8 {[%clk 0:01:53]} 27. Kf3 {[%clk 0:08:14]}  g6 {[%clk 0:01:45]} 28. Ke4 {[%clk 0:08:14]}  Kf7 {[%clk 0:01:27]} 29. Kd5 {[%clk 0:07:45]}  Nb4+ {[%clk 0:01:25]} 30. Kc4 {[%clk 0:07:40]}  Nc2 {[%clk 0:01:11]} 31. Rd2 {[%clk 0:06:43]}  Ne3+ {[%clk 0:01:09]} 32. Kb5 {[%clk 0:06:44]}  Ke6 {[%clk 0:01:07]} 33. Kc6 {[%clk 0:06:31]}  Kf5 {[%clk 0:01:05]} 34. b4 {[%clk 0:06:27]}  c4 {[%clk 0:00:44]} 35. Rxd4 {[%clk 0:06:20]}  c3 {[%clk 0:00:45]} 36. Rd3 {[%clk 0:06:08]}  c2 {[%clk 0:00:45]} 37. Rc3 {[%clk 0:06:09]}  Ke4 {[%clk 0:00:19]} 0-1


[Site "Internet"]

[Event "Chessable Masters - Torneo preliminare"]
[White "Mareco, Sandro"]
[Black "Rasulov, Vugar"]
[WhiteFideId "112275"]
[BlackFideId "13402390"]
[WhiteElo "2541"]
[BlackElo "2415"]
[Result "0-1"]
[Round "7"]
[TimeControl "600+2"]
[Date "2023.03.13"]
[WhiteClock "0:06:03"]
[BlackClock "0:03:52"]

1. d4 {[%clk 0:10:01]}  Nf6 {[%clk 0:09:59]} 2. c4 {[%clk 0:10:02]}  e6 {[%clk 0:09:59]} 3. Nf3 {[%clk 0:10:04]}  c5 {[%clk 0:09:51]} 4. d5 {[%clk 0:10:04]}  exd5 {[%clk 0:09:52]} 5. cxd5 {[%clk 0:10:05]}  d6 {[%clk 0:09:54]} 6. Nc3 {[%clk 0:10:05]}  g6 {[%clk 0:09:55]} 7. Bf4 {[%clk 0:10:06]}  a6 {[%clk 0:09:55]} 8. a4 {[%clk 0:10:06]}  Bg7 {[%clk 0:09:55]} 9. h3 {[%clk 0:10:07]}  O-O {[%clk 0:09:55]} 10. e3 {[%clk 0:10:08]}  Ne8 {[%clk 0:09:44]} 11. Be2 {[%clk 0:10:08]}  Nd7 {[%clk 0:09:44]} 12. O-O {[%clk 0:10:08]}  Rb8 {[%clk 0:09:43]} 13. Re1 {[%clk 0:09:52]}  Qe7 {[%clk 0:09:36]} 14. Qc2 {[%clk 0:09:48]}  f5 {[%clk 0:09:11]} 15. Nd2 {[%clk 0:09:41]}  Ne5 {[%clk 0:08:36]} 16. Bh2 {[%clk 0:09:19]}  Nc7 {[%clk 0:07:47]} 17. a5 {[%clk 0:09:17]}  Bd7 {[%clk 0:07:24]} 18. Nc4 {[%clk 0:09:17]}  Nxc4 {[%clk 0:07:10]} 19. Bxc4 {[%clk 0:09:17]}  b5 {[%clk 0:07:07]} 20. axb6 {[%clk 0:09:17]}  Rxb6 {[%clk 0:07:09]} 21. b3 {[%clk 0:09:10]}  Bb5 {[%clk 0:06:42]} 22. Na4 {[%clk 0:09:10]}  Rbb8 {[%clk 0:06:18]} 23. Ra2 {[%clk 0:07:25]}  Bxc4 {[%clk 0:06:15]} 24. bxc4 {[%clk 0:07:26]}  f4 {[%clk 0:05:51]} 25. Qc1 {[%clk 0:07:00]}  f3 {[%clk 0:05:27]} 26. Nb2 {[%clk 0:06:26]}  Qg5 {[%clk 0:04:48]} 27. Bg3 {[%clk 0:06:23]}  Be5 {[%clk 0:04:15]} 28. Kh2 {[%clk 0:06:07]}  h5 {[%clk 0:03:56]} 29. Nd3 {[%clk 0:06:03]}  h4 {[%clk 0:03:52]} 0-1


[Site "Internet"]

[Event "Chessable Masters - Torneo preliminare"]
[White "Tan, Zhongyi"]
[Black "Malakhov, Vladimir"]
[WhiteFideId "8603642"]
[BlackFideId "4120787"]
[WhiteElo "2517"]
[BlackElo "2666"]
[Result "0-1"]
[Round "7"]
[TimeControl "600+2"]
[Date "2023.03.13"]
[WhiteClock "0:00:06"]
[BlackClock "0:01:35"]

1. d4 {[%clk 0:10:01]}  d5 {[%clk 0:09:59]} 2. c4 {[%clk 0:10:02]}  e6 {[%clk 0:10:00]} 3. Nc3 {[%clk 0:10:02]}  Nf6 {[%clk 0:10:00]} 4. cxd5 {[%clk 0:10:03]}  exd5 {[%clk 0:10:00]} 5. Bg5 {[%clk 0:10:05]}  c6 {[%clk 0:10:00]} 6. e3 {[%clk 0:10:06]}  Be7 {[%clk 0:10:00]} 7. Bd3 {[%clk 0:10:06]}  O-O {[%clk 0:09:52]} 8. Nge2 {[%clk 0:10:07]}  h6 {[%clk 0:09:22]} 9. Bh4 {[%clk 0:10:07]}  Re8 {[%clk 0:09:18]} 10. O-O {[%clk 0:10:02]}  Nh5 {[%clk 0:09:12]} 11. Bxe7 {[%clk 0:09:55]}  Qxe7 {[%clk 0:09:13]} 12. Qd2 {[%clk 0:09:41]}  Nf6 {[%clk 0:08:31]} 13. Rae1 {[%clk 0:09:39]}  Nbd7 {[%clk 0:08:26]} 14. Ng3 {[%clk 0:09:38]}  Nf8 {[%clk 0:08:13]} 15. f3 {[%clk 0:09:34]}  Be6 {[%clk 0:07:43]} 16. e4 {[%clk 0:09:22]}  dxe4 {[%clk 0:07:42]} 17. fxe4 {[%clk 0:09:23]}  Rad8 {[%clk 0:07:24]} 18. e5 {[%clk 0:09:21]}  Nd5 {[%clk 0:07:15]} 19. Nce4 {[%clk 0:09:20]}  Qb4 {[%clk 0:06:35]} 20. Qf2 {[%clk 0:07:54]}  Nf4 {[%clk 0:05:33]} 21. Qxf4 {[%clk 0:07:49]}  Qxd4+ {[%clk 0:05:33]} 22. Re3 {[%clk 0:07:43]}  Ng6 {[%clk 0:05:34]} 23. Qf2 {[%clk 0:07:39]}  Nxe5 {[%clk 0:05:32]} 24. Be2 {[%clk 0:07:38]}  Qxb2 {[%clk 0:05:24]} 25. Nh5 {[%clk 0:07:05]}  Ng6 {[%clk 0:04:51]} 26. Nef6+ {[%clk 0:06:33]}  gxf6 {[%clk 0:04:50]} 27. Nxf6+ {[%clk 0:06:35]}  Kh8 {[%clk 0:04:40]} 28. Re4 {[%clk 0:03:57]}  Re7 {[%clk 0:03:52]} 29. h4 {[%clk 0:02:58]}  Qb6 {[%clk 0:03:32]} 30. Re3 {[%clk 0:01:56]}  Bxa2 {[%clk 0:03:08]} 31. Ne4 {[%clk 0:01:01]}  Bd5 {[%clk 0:02:43]} 32. h5 {[%clk 0:00:40]}  Rxe4 {[%clk 0:02:27]} 33. Qf6+ {[%clk 0:00:16]}  Kg8 {[%clk 0:02:25]} 34. hxg6 {[%clk 0:00:18]}  Qxe3+ {[%clk 0:02:20]} 35. Rf2 {[%clk 0:00:13]}  Rd7 {[%clk 0:02:05]} 36. Bh5 {[%clk 0:00:09]}  Ree7 {[%clk 0:01:37]} 37. gxf7+ {[%clk 0:00:06]}  Bxf7 {[%clk 0:01:35]} 0-1


[Site "Internet"]